[Event "Nacional Masters POR 2017-18"]
[Site "Cascais"]
[Date "2018.08.15"]
[Round "6"]
[White "Santos, Antonio Pereira"]
[Black "Santos, Jose Alves"]
[Result "0-1"]
[ECO "D09"]
[WhiteElo "2194"]
[BlackElo "2118"]
[Annotator "NA"]
[PlyCount "40"]
[EventDate "2018.08.11"]
[EventType "tourn"]
[EventCountry "POR"]
[SourceTitle "playchess.com"]
[Source "ChessBase"]
[SourceQuality "1"]
[TimeControl "5400+30"]

{[%evp 8,40,65,29,87,81,77,73,32767,110,122,32767,32767,32767,32767,32767,109,16,32767,28,80,-52,-78,-855,32767,32767,32767,32767,-531,-787,-532,-1949,-2373,-1757,-2775]} 1. d4 {[%emt 0:03:19]} d5 {[%emt 0:00:00]} 2. c4 {[%emt 0:00:09]} e5 {[%emt 0:02:55]} 3. dxe5 {[%emt 0:00:09]} d4 {[%emt 0:00:03]} 4. Nf3 {[%emt 0:00:08]} Nc6 {[%emt 0:00:03]} 5. g3 {[%emt 0:00:10]} Bg4 {[%emt 0:00:41]} 6. Nbd2 {[%emt 0:00:24] LiveBook: 7 Games} Qd7 {[%emt 0:00:12] D09: Albin Counter Gambit: Main line with 5 g3} 7. a3 {[%emt 0:01:42]} O-O-O {[%emt 0:18:43]} 8. h3 {[%emt 0:17:05]} Bf5 {[%emt 0:09:29]} 9. Bg2 {[%emt 0:14:37]} Re8 $146 {[%emt 0:18:45]} ({Predecessor:} 9... Nge7 10. b4 Ng6 11. Qa4 Kb8 12. Bb2 Qe8 13. O-O h5 14. h4 Bg4 15. b5 Ncxe5 16. Nxd4 {0-1 (33) Servaty,R (2153)-Schebler,G (2482) Recklinghausen 2003}) 10. Qa4 {[%emt 0:07:53]} Kb8 {[%emt 0:22:57]} 11. g4 {[%emt 0:23:18]} Bg6 {[%emt 0:09:26]} (11... Nxe5 $14 12. Qxd7 Bxd7) 12. O-O {[%emt 0:00:50]} ({Besser ist} 12. Nb3 $16) 12... h5 {[%emt 0:01:11]} 13. Nb3 {[%emt 0:01:47]} Be4 {[%emt 0:17:35]} 14. Nbxd4 $2 {[%emt 0:06:43]} (14. Rd1 $16 Nxe5 15. Qxd7 Nxd7 16. Nbxd4) 14... hxg4 {[%emt 0:01:22]} 15. hxg4 $2 {[%emt 0:00:03]} (15. e6 $15 fxe6 16. Ne5 Nxe5 17. Qxd7 Nxd7 18. Bxe4) 15... Qxg4 {[%emt 0:02:42]} 16. Be3 {[%emt 0:02:00]} Bc5 {[%emt 0:01:04]} 17. Rfd1 {[%emt 0:00:28]} Nge7 {[%emt 0:01:10]} 18. e6 {[%emt 0:06:47]} f6 {[%emt 0:03:39]} 19. Nb5 {[%emt 0:07:38]} Bxe3 {[%emt 0:01:07]} 20. fxe3 {[%emt 0:00:02]} Nf5 $19 {[%emt 0:00:14]} 0-1

[Event "Nacional Masters POR 2017-18"]
[Site "Cascais"]
[Date "2018.08.15"]
[Round "6"]
[White "Fidalgo, Andre Neves"]
[Black "Guerra, Vitor Manuel Vestia"]
[Result "0-1"]
[ECO "D30"]
[WhiteElo "2187"]
[BlackElo "2127"]
[Annotator "NA"]
[PlyCount "56"]
[EventDate "2018.08.11"]
[EventType "tourn"]
[EventCountry "POR"]
[SourceTitle "playchess.com"]
[Source "ChessBase"]
[SourceQuality "1"]
[TimeControl "5400+30"]

1. d4 {[%emt 0:00:00]} d5 {[%emt 0:00:05]} 2. c4 {[%emt 0:00:00]} e6 {[%emt 0:00:19]} 3. Nf3 {[%emt 0:00:00]} c6 {[%emt 0:00:47]} 4. Qc2 {[%emt 0:00:12]} b5 {[%emt 0:00:44]} 5. cxb5 {[%emt 0:00:51]} cxb5 {[%emt 0:00:16]} 6. e4 {[%emt 0:00:13]} a6 {[%emt 0:01:09]} 7. exd5 {[%emt 0:00:52]} exd5 {[%emt 0:01:32]} 8. Bd3 {[%emt 0:01:14]} Bd6 {[%emt 0:01:10]} 9. O-O {[%emt 0:01:13]} Ne7 {[%emt 0:01:55]} 10. Bg5 {[%emt 0:06:18]} Be6 {[%emt 0:01:23]} 11. Nc3 {[%emt 0:02:26]} Nbc6 {[%emt 0:02:50]} 12. Nxb5 {[%emt 0:05:07]} axb5 {[%emt 0:05:37]} 13. Bxb5 {[%emt 0:00:11]} Rc8 {[%emt 0:00:20]} 14. Bxe7 {[%emt 0:00:10]} Kxe7 {[%emt 0:05:24]} 15. Bxc6 {[%emt 0:00:12]} Qb6 {[%emt 0:01:59]} 16. Rac1 {[%emt 0:01:02]} Rc7 {[%emt 0:00:28]} 17. Qa4 $19 {[%emt 0:03:16]} (17. b4 $11 Rhc8 18. b5 Qxb5 19. Bxb5 Rxc2 20. Ra1) 17... Rhc8 {[%emt 0:01:09]} 18. Ne5 {[%emt 0:03:12]} Bxe5 {[%emt 0:04:19]} 19. dxe5 {[%emt 0:00:07]} Kf8 {[%emt 0:10:50]} 20. b3 {[%emt 0:11:56]} Rxc6 {[%emt 0:01:26]} 21. Qa3+ {[%emt 0:00:46]} Kg8 {[%emt 0:01:05]} 22. Rxc6 {[%emt 0:01:26]} Qxc6 {[%emt 0:00:27]} 23. Qe7 {[%emt 0:04:00]} h6 {[%emt 0:00:34]} 24. Qh4 {[%emt 0:01:35]} Ra8 {[%emt 0:02:36]} 25. a4 {[%emt 0:01:23]} Rb8 {[%emt 0:01:56]} 26. Qg3 {[%emt 0:04:18]} Qc2 {[%emt 0:00:28]} 27. f4 {[%emt 0:00:38]} Rxb3 {[%emt 0:01:21]} 28. Qh4 {[%emt 0:00:56]} Rb1 {[%emt 0:00:41]} 0-1

[Event "Nacional Masters POR 2017-18"]
[Site "Cascais"]
[Date "2018.08.15"]
[Round "6"]
[White "Martins, Bruno Andre Leite"]
[Black "Martins, David Pires Tavares"]
[Result "0-1"]
[ECO "C12"]
[WhiteElo "2158"]
[BlackElo "2397"]
[Annotator "NA"]
[PlyCount "68"]
[EventDate "2018.08.11"]
[EventType "tourn"]
[EventCountry "POR"]
[SourceTitle "playchess.com"]
[Source "ChessBase"]
[SourceQuality "1"]
[TimeControl "5400+30"]

1. e4 e6 2. d4 d5 3. Nc3 Nf6 4. Bg5 {[%emt 0:00:35]} Bb4 {[%emt 0:00:09]} 5. e5 {[%emt 0:00:17]} h6 {[%emt 0:00:04]} 6. Bd2 {[%emt 0:00:51]} Bxc3 {[%emt 0:00:05]} 7. bxc3 {[%emt 0:00:10]} Ne4 {[%emt 0:00:04]} 8. Qg4 {[%emt 0:00:12]} Kf8 {[%emt 0:00:05]} 9. Bd3 {[%emt 0:01:39]} Nxd2 {[%emt 0:00:07]} 10. Kxd2 {[%emt 0:00:30]} c5 {[%emt 0:00:30]} 11. Nf3 {[%emt 0:00:30]} cxd4 {[%emt 0:00:30] C12: French: Classical System: McCutcheon Variation} 12. cxd4 {[%emt 0:00:30]} (12. Nxd4 Qg5+ 13. Qxg5 hxg5 14. h3 Nd7 15. Rae1 Nc5 16. Rhf1 Bd7 17. f4 gxf4 18. Rxf4 Ke7 19. Ref1 {0-1 (77) Inarkiev,E (2693)-Nepomniachtchi,I (2707) Novosibirsk 2012}) 12... Qa5+ {[%emt 0:00:30]} 13. c3 {[%emt 0:00:30]} Qa3 $146 {[%emt 0:00:30]} ({Predecessor:} 13... b6 14. Qf4 Nc6 15. h4 Ba6 16. Bg6 Nd8 17. Ne1 Qb5 18. Qf3 Rc8 19. Nc2 {0-1 (32) Borisenko,V (2302)-Anton Guijarro,D (2462) Albena 2011}) 14. Ne1 {[%emt 0:18:31]} Nc6 {[%emt 0:05:49]} 15. Nc2 {[%emt 0:01:29]} Qe7 {[%emt 0:01:52]} 16. f4 {[%emt 0:05:36]} g6 {[%emt 0:35:54]} 17. h4 {[%emt 0:02:28]} h5 {[%emt 0:00:43]} 18. Qg5 {[%emt 0:08:43]} Bd7 {[%emt 0:00:16]} 19. Ne3 {[%emt 0:07:45]} Rc8 {[%emt 0:09:48]} 20. g4 {[%emt 0:05:43]} Qa3 {[%emt 0:14:41]} 21. Nc2 {[%emt 0:20:17]} Qa5 {[%emt 0:06:22]} 22. f5 {[%emt 0:00:30] [#]} Nxe5 $1 {[%emt 0:06:21]} 23. dxe5 {[%emt 0:10:11]} Qxc3+ {[%emt 0:00:09]} 24. Ke3 {[%emt 0:08:33]} (24. Ke2 $142 Bb5 25. Qd2 Qxc2 26. Qxc2 Rxc2+ 27. Ke3) 24... Bb5 $1 {[%emt 0:01:01]} 25. Nb4 {[%emt 0:04:03]} Qxe5+ {[%emt 0:03:15]} (25... Qxb4 26. fxg6 Qc5+ 27. Kf3 $15) 26. Kd2 {[%emt 0:01:08]} Qc3+ {[%emt 0:04:13]} 27. Ke3 {[%emt 0:00:26]} exf5 {[%emt 0:00:35]} 28. Rac1 {[%emt 0:02:03]} Re8+ {[%emt 0:00:09]} 29. Kf3 {[%emt 0:00:45]} hxg4+ {[%emt 0:00:48]} 30. Kg3 {[%emt 0:00:08]} Qxb4 {[%emt 0:00:31]} 31. Bxb5 {[%emt 0:00:36]} Qxb5 {[%emt 0:01:03]} 32. Qd2 {[%emt 0:00:45]} Qe2 {[%emt 0:02:08]} 33. Qb4+ {[%emt 0:00:35]} Kg7 {[%emt 0:00:39]} 34. Qd4+ {[%emt 0:00:14]} Qe5+ {[%emt 0:00:18]} 0-1

[Event "Nacional Masters POR 2017-18"]
[Site "Cascais"]
[Date "2018.08.16"]
[Round "8"]
[White "Fidalgo, Andre Neves"]
[Black "Martins, David Pires Tavares"]
[Result "0-1"]
[ECO "A41"]
[WhiteElo "2187"]
[BlackElo "2397"]
[Annotator "ChessBase"]
[PlyCount "142"]
[EventDate "2018.08.11"]
[EventType "tourn"]
[EventCountry "POR"]
[SourceTitle "playchess.com"]
[Source "ChessBase"]
[SourceQuality "1"]
[TimeControl "5400+30"]

1. d4 {[%emt 0:00:00]} d6 {[%emt 0:00:00]} 2. c4 {[%emt 0:00:00]} f5 {[%emt 0:00:00]} 3. Nc3 {[%emt 0:00:00]} Nf6 {[%emt 0:00:00]} 4. Bg5 {[%emt 0:00:05]} Nbd7 {[%emt 0:00:37]} 5. Qc2 {[%emt 0:00:09]} g6 {[%emt 0:00:10]} 6. e4 {[%emt 0:00:26]} Nxe4 {[%emt 0:00:31]} 7. Nxe4 {[%emt 0:00:08]} fxe4 {[%emt 0:00:04]} 8. Qxe4 {[%emt 0:00:10]} Bg7 {[%emt 0:00:11]} 9. O-O-O {[%emt 0:02:26]} c5 {[%emt 0:03:32]} 10. Nf3 {[%emt 0:03:52]} Nf6 {[%emt 0:01:27]} 11. Qc2 {[%emt 0:00:28]} cxd4 {[%emt 0:00:40]} 12. Nxd4 {[%emt 0:04:58]} Qa5 {[%emt 0:00:15]} 13. Bxf6 {[%emt 0:11:09]} Bxf6 {[%emt 0:00:15]} 14. Kb1 {[%emt 0:00:30]} O-O {[%emt 0:01:55]} 15. Nb3 {[%emt 0:00:47]} Qb4 {[%emt 0:05:29]} 16. h4 {[%emt 0:04:08]} Bf5 {[%emt 0:09:17]} 17. Bd3 {[%emt 0:00:19]} Rac8 {[%emt 0:00:10]} 18. Bxf5 {[%emt 0:02:36]} gxf5 {[%emt 0:00:11]} 19. Qxf5 {[%emt 0:03:28]} Kh8 {[%emt 0:16:16]} 20. Qb5 {[%emt 0:25:08]} Rxc4 {[%emt 0:10:14]} 21. Qxb4 {[%emt 0:00:39]} Rxb4 {[%emt 0:00:06]} 22. g3 {[%emt 0:01:01]} Rc8 {[%emt 0:02:24]} 23. Rc1 {[%emt 0:00:43]} Rc6 {[%emt 0:00:33]} 24. Rhe1 {[%emt 0:04:55]} Kg7 {[%emt 0:01:22]} 25. Re2 {[%emt 0:02:02]} Kg6 {[%emt 0:01:07]} 26. Rxc6 {[%emt 0:09:56]} bxc6 {[%emt 0:00:08]} 27. Nc1 {[%emt 0:00:07]} Kf5 {[%emt 0:01:10]} 28. f3 {[%emt 0:01:04]} Rd4 {[%emt 0:03:45]} 29. Kc2 {[%emt 0:00:12]} Rc4+ {[%emt 0:00:08]} 30. Kd1 {[%emt 0:01:08]} e5 {[%emt 0:04:44]} 31. Nd3 {[%emt 0:01:07]} h5 {[%emt 0:01:30]} 32. b3 {[%emt 0:02:35]} Rd4 {[%emt 0:03:30]} 33. Kc2 {[%emt 0:00:06]} Bd8 {[%emt 0:04:53]} 34. Kc3 {[%emt 0:01:14]} Ba5+ {[%emt 0:00:25]} 35. Kc2 {[%emt 0:01:00]} Bb6 {[%emt 0:01:58]} 36. Kc3 {[%emt 0:00:53]} Ba5+ {[%emt 0:07:49]} 37. Kc2 {[%emt 0:00:08]} c5 {[%emt 0:00:08]} 38. Nb2 {[%emt 0:02:58]} Bc7 {[%emt 0:00:38]} 39. Nd3 {[%emt 0:00:16]} Bb6 {[%emt 0:01:09]} 40. a3 {[%emt 0:02:42]} c4 {[%emt 0:00:26]} 41. bxc4 {[%emt 0:00:18]} Rxc4+ {[%emt 0:00:06]} 42. Kb3 {[%emt 0:00:33]} Rc8 {[%emt 0:00:26]} 43. Nb4 {[%emt 0:00:14]} Rg8 {[%emt 0:00:38]} 44. Rg2 {[%emt 0:00:30]} e4 {[%emt 0:00:48]} 45. fxe4+ {[%emt 0:00:39]} Kxe4 {[%emt 0:00:09]} 46. Kc4 {[%emt 0:00:35]} d5+ {[%emt 0:01:02]} 47. Kb5 {[%emt 0:00:47]} Be3 {[%emt 0:01:41]} 48. Rc2 {[%emt 0:02:58]} Rb8+ {[%emt 0:01:31]} 49. Ka4 {[%emt 0:00:26]} d4 {[%emt 0:02:23]} 50. Rc7 {[%emt 0:00:06]} Rd8 {[%emt 0:00:48]} 51. Rh7 {[%emt 0:04:03]} d3 {[%emt 0:00:28]} 52. Nxd3 {[%emt 0:00:19]} Rxd3 {[%emt 0:09:15]} 53. Rxh5 {[%emt 0:00:06]} Bc1 {[%emt 0:00:14]} 54. g4 {[%emt 0:07:03]} Rxa3+ {[%emt 0:00:11]} 55. Kb4 {[%emt 0:00:05]} Rg3 {[%emt 0:03:46]} 56. Rh7 {[%emt 0:00:43]} Be3 {[%emt 0:01:00]} 57. g5 {[%emt 0:00:08]} Kd5 {[%emt 0:00:42]} 58. Rd7+ {[%emt 0:01:44]} Kc6 {[%emt 0:00:17]} 59. Rh7 {[%emt 0:00:19]} Bc5+ {[%emt 0:00:29]} 60. Kc4 {[%emt 0:00:12]} Rg4+ {[%emt 0:00:12]} 61. Kc3 {[%emt 0:00:18]} Kb5 {[%emt 0:00:27]} 62. Rb7+ {[%emt 0:00:29]} Bb6 {[%emt 0:00:06]} 63. Rh7 {[%emt 0:00:33]} a5 {[%emt 0:00:20]} 64. Rh5 {[%emt 0:00:22]} Rg3+ {[%emt 0:00:20]} 65. Kc2 {[%emt 0:00:16]} Kc4 {[%emt 0:00:13]} 66. Rh8 {[%emt 0:00:34]} Rg2+ {[%emt 0:00:26]} 67. Kc1 {[%emt 0:00:16]} Bd4 {[%emt 0:00:49]} 68. Rc8+ {[%emt 0:00:46]} Kd3 {[%emt 0:00:09]} 69. Kb1 {[%emt 0:00:06]} Rb2+ {[%emt 0:01:31]} 70. Kc1 {[%emt 0:00:05]} a4 {[%emt 0:00:23]} 71. Ra8 {[%emt 0:00:46]} Rg2 {[%emt 0:00:16]} 0-1

[Event "Nacional Masters POR 2017-18"]
[Site "Cascais"]
[Date "2018.08.17"]
[Round "9"]
[White "Martins, David Pires Tavares"]
[Black "Santos, Antonio Pereira"]
[Result "1-0"]
[ECO "D20"]
[WhiteElo "2397"]
[BlackElo "2194"]
[Annotator "NA"]
[PlyCount "65"]
[EventDate "2018.08.11"]
[EventType "tourn"]
[EventCountry "POR"]
[SourceTitle "playchess.com"]
[Source "ChessBase"]
[SourceQuality "1"]
[TimeControl "5400+30"]

{[%evp 8,61,37,18,33,32767,33,2,29,31,35,31,19,0,9,6,19,20,28,16,32767,32767,32767,143,32767,32767,32767,132,32767,137,180,32767,82,24,40,0,32767,12,77,32767,32767,43,32767,32767,32767,32767,185,168,175,182,197,187,197,201,32767,153]} 1. d4 {[%emt 0:00:00] Chekhov,V} d5 {[%emt 0:16:06]} 2. c4 {[%emt 0:00:00]} dxc4 {[%emt 0:00:06]} 3. e3 {[%emt 0:00:00]} Nf6 {[%emt 0:00:12]} 4. Bxc4 {[%emt 0:00:00]} a6 {[%emt 0:00:11]} 5. Bb3 {[%emt 0:01:57]} e6 {[%emt 0:00:12]} 6. Nf3 {[%emt 0:00:12]} c5 {[%emt 0:03:28]} 7. O-O {[%emt 0:00:17]} Nc6 {[%emt 0:00:15]} 8. Qe2 {[%emt 0:00:34]} cxd4 {[%emt 0:00:22]} 9. Rd1 {[%emt 0:00:24]} Be7 {[%emt 0:00:10]} 10. exd4 {[%emt 0:00:24]} O-O {[%emt 0:00:09]} 11. a3 {[%emt 0:02:24] LiveBook: 3 Partien D27: Queen's Gambit Accepted: Classical main line: 7 e4!? and 7 a4} (11. Nc3 Na5 12. Bc2 b5 13. Bg5 Bb7 14. d5 exd5 15. Nd4 g6 16. Re1 Re8 17. Rad1 Ne4 18. Bxe7 Qxe7 19. f3 Nxc3 20. Qxe7 Rxe7 21. Rxe7 Nxd1 22. Bxd1 {0-1 (39) Salem,A (2656)-Dominguez Perez,L (2739) Doha 2016}) 11... Qb6 {[%emt 0:07:29]} 12. Ba2 {[%emt 0:13:37]} Rd8 {[%emt 0:01:05]} 13. Nc3 {[%emt 0:00:34]} Nxd4 $146 {[%emt 0:30:36]} ({Predecessor:} 13... Nd5 14. Qe4 Nf6 15. Qc2 Bd7 16. Be3 Qc7 17. h3 Rac8 18. Rac1 Bd6 {1-0 (27) Tkachiev,V (2620)-Gyimesi,Z (2480) Vienna 1996 CBM 053 Extra [Chekhov,V]}) 14. Rxd4 {[%emt 0:00:37]} Rxd4 {[%emt 0:00:24] [#]} 15. Be3 $1 {[%emt 0:00:15]} Bc5 {[%emt 0:00:25]} 16. b4 {[%emt 0:00:29]} Rxb4 {[%emt 0:00:39]} 17. axb4 {[%emt 0:00:16]} Bxe3 {[%emt 0:00:21]} 18. Qxe3 {[%emt 0:00:14]} Qxb4 {[%emt 0:00:09]} 19. Rd1 {[%emt 0:01:36]} Bd7 {[%emt 0:10:20]} 20. Ne5 {[%emt 0:08:12]} (20. Rb1 $16 Qa5 21. Rxb7) 20... Be8 $1 {[%emt 0:00:53]} 21. Bb1 {[%emt 0:12:16]} Rc8 {[%emt 0:10:33]} 22. Ne4 {[%emt 0:00:12]} Nxe4 {[%emt 0:00:04]} (22... Nd5 $11 {keeps the balance.} 23. Qf3 Qe7) 23. Bxe4 {[%emt 0:04:18]} Qe7 {[%emt 0:00:44]} 24. Qb6 {[%emt 0:06:43]} f6 {[%emt 0:02:51]} 25. Nf3 {[%emt 0:00:33]} f5 {[%emt 0:01:35]} 26. Bb1 {[%emt 0:01:56]} Bh5 {[%emt 0:10:46]} 27. Ba2 {[%emt 0:01:47]} Bxf3 {[%emt 0:00:02]} 28. Qxe6+ {[%emt 0:00:25]} Qxe6 {[%emt 0:00:05]} 29. Bxe6+ {[%emt 0:00:05]} Kf8 {[%emt 0:00:18]} 30. gxf3 {[%emt 0:00:05]} Rc5 {[%emt 0:00:14]} 31. Rd7 $16 {[%emt 0:00:18]} b5 {[%emt 0:01:10]} 32. Rf7+ {[%emt 0:01:03]} Ke8 {[%emt 0:00:01]} 33. Ra7 {[%emt 0:02:15]} 1-0

[Event "Nacional Masters POR 2017-18"]
[Site "Cascais"]
[Date "2018.08.17"]
[Round "9"]
[White "Dias, Ivo Rodrigues"]
[Black "Santos, Jose Alves"]
[Result "0-1"]
[ECO "D08"]
[WhiteElo "2164"]
[BlackElo "2118"]
[Annotator "NA"]
[PlyCount "92"]
[EventDate "2018.08.11"]
[EventType "tourn"]
[EventCountry "POR"]
[SourceTitle "playchess.com"]
[Source "ChessBase"]
[SourceQuality "1"]
[TimeControl "5400+30"]

1. d4 {[%emt 0:00:00]} d5 {[%emt 0:01:37]} 2. c4 {[%emt 0:00:00]} e5 {[%emt 0:00:10]} 3. dxe5 {[%emt 0:00:00]} d4 {[%emt 0:00:04]} 4. Nf3 {[%emt 0:00:07]} Nc6 {[%emt 0:00:05] LiveBook: 848 Games} 5. a3 {[%emt 0:00:17]} Bg4 {[%emt 0:00:55]} 6. Nbd2 {[%emt 0:00:08]} Qd7 {[%emt 0:00:08]} 7. b4 {[%emt 0:01:55] D08: Albin Counter Gambit} Nge7 {[%emt 0:05:02]} 8. Bb2 {[%emt 0:03:19]} (8. h3 Be6 9. b5 Na5 10. Qa4 b6 11. Bb2 c5 12. bxc6 Nexc6 13. Nxd4 Bc5 {1-0 (52) Farago,I (2504)-Bukal,V (2441) Austria 2008}) 8... Ng6 {[%emt 0:00:15]} 9. b5 $146 {[%emt 0:10:48]} (9. h3 $16 Bf5 10. Qa4) ({Predecessor:} 9. Qa4 Bxf3 10. Nxf3 Ngxe5 11. Nxe5 Nxe5 12. Qxd7+ Kxd7 13. e3 Re8 14. Bxd4 a6 {1-0 (42) Gibson,C (1973)-Zhu,Y (1954) England 2010}) 9... Ncxe5 {[%emt 0:08:24]} 10. Qb3 {[%emt 0:13:20]} Nxf3+ {[%emt 0:12:57]} 11. Nxf3 {[%emt 0:00:41]} Bc5 {[%emt 0:03:32]} 12. Rd1 {[%emt 0:04:33]} Bxf3 {[%emt 0:00:36]} 13. Qxf3 {[%emt 0:08:47]} O-O-O {[%emt 0:08:30]} 14. g3 {[%emt 0:01:39]} Ne5 {[%emt 0:01:13]} 15. Qh5 {[%emt 0:03:15]} Qe7 $2 {[%emt 0:04:44]} ({Black should try} 15... f5 $19 16. Bg2 g6) 16. Bh3+ {[%emt 0:00:35]} (16. Qf5+ $1 $15 Kb8 17. Bg2) 16... Kb8 17. O-O g6 {[%emt 0:04:43]} 18. Qh4 {[%emt 0:01:26]} Qxh4 {[%emt 0:04:02]} 19. gxh4 {[%emt 0:00:05]} Nxc4 {[%emt 0:00:21]} 20. Rc1 {[%emt 0:00:23]} Nxb2 {[%emt 0:00:29]} 21. Rxc5 {[%emt 0:00:07]} d3 {[%emt 0:00:05]} 22. exd3 {[%emt 0:03:01]} Rxd3 {[%emt 0:01:48]} 23. Bg2 {[%emt 0:00:41]} Rxa3 {[%emt 0:01:26]} 24. Re5 {[%emt 0:00:16]} Rd3 {[%emt 0:01:57]} (24... Nc4 $19 25. Re7 Nd6) 25. Re7 {[%emt 0:01:21]} Rf8 {[%emt 0:00:28]} 26. Be4 {[%emt 0:01:35]} Rd1 {[%emt 0:01:19]} 27. Rxd1 {[%emt 0:00:11]} Nxd1 {[%emt 0:00:01]} 28. Bd5 $17 {[%emt 0:00:17]} Nc3 {[%emt 0:00:19]} 29. Bxf7 {[%emt 0:00:17]} Nxb5 {[%emt 0:00:35]} 30. Bc4 {[%emt 0:00:06]} Nd6 {[%emt 0:00:29]} 31. Bd3 {[%emt 0:00:12]} Rf7 {[%emt 0:00:25]} 32. Re5 {[%emt 0:00:01]} b6 {[%emt 0:00:56]} 33. h5 {[%emt 0:01:07]} a5 {[%emt 0:09:31]} 34. hxg6 {[%emt 0:00:58]} hxg6 {[%emt 0:00:02]} 35. Kf1 {[%emt 0:00:36]} Rg7 {[%emt 0:03:23]} 36. h4 {[%emt 0:00:12]} a4 {[%emt 0:01:26]} 37. Bc2 {[%emt 0:00:23]} a3 {[%emt 0:02:34]} 38. Bb1 {[%emt 0:00:25]} Rh7 {[%emt 0:01:29]} 39. Re3 {[%emt 0:00:56]} Nc4 {[%emt 0:00:46]} 40. Re8+ {[%emt 0:00:46]} Kb7 {[%emt 0:00:41]} 41. Be4+ {[%emt 0:00:17]} c6 {[%emt 0:00:18]} 42. Bd3 {[%emt 0:00:37]} a2 {[%emt 0:00:23]} 43. Re1 {[%emt 0:00:06]} Nd2+ {[%emt 0:00:11]} 44. Kg2 {[%emt 0:00:07]} Nb3 {[%emt 0:00:32]} 45. Bxg6 {[%emt 0:00:07]} Rxh4 {[%emt 0:01:44]} 46. Kg3 {[%emt 0:00:16]} Rh6 {[%emt 0:00:57]} 0-1

[Event "Nacional Masters POR 2017-18"]
[Site "Cascais"]
[Date "2018.08.17"]
[Round "9"]
[White "Martins, Bruno Andre Leite"]
[Black "Padeiro, Jose Joao Tato"]
[Result "1-0"]
[ECO "B11"]
[WhiteElo "2158"]
[BlackElo "2241"]
[Annotator "NA"]
[PlyCount "79"]
[EventDate "2018.08.11"]
[EventType "tourn"]
[EventCountry "POR"]
[SourceTitle "playchess.com"]
[Source "ChessBase"]
[SourceQuality "1"]
[TimeControl "5400+30"]

1. e4 {[%emt 0:00:00]} c6 {[%emt 0:00:00]} 2. Nc3 {[%emt 0:00:00]} d5 {[%emt 0:00:00]} 3. Nf3 {[%emt 0:00:06]} Bg4 {[%emt 0:00:18]} 4. h3 {[%emt 0:00:08]} Bxf3 {[%emt 0:00:04]} 5. Qxf3 {[%emt 0:00:11]} e6 {[%emt 0:00:05]} 6. d4 {[%emt 0:00:35]} Nf6 {[%emt 0:02:26]} 7. Bd3 {[%emt 0:03:15]} dxe4 {[%emt 0:00:42]} 8. Nxe4 {[%emt 0:00:07]} Nxe4 {[%emt 0:00:22] B11: Caro-Kann (Zweispringer-Variante)} (8... Nbd7 9. c3 Nxe4 10. Qxe4 Nf6 11. Qf3 Qd5 12. Qxd5 exd5 13. O-O O-O-O 14. Re1 Re8 15. Bf4 Kd8 16. g4 h6 17. Kg2 Rxe1 18. Rxe1 Ne8 19. h4 {1-0 (61) Bacrot,E (2722)-Fontaine,R (2563) chess.com INT 2018}) 9. Qxe4 {[%emt 0:01:36]} Qd5 {[%emt 0:02:48]} 10. O-O {[%emt 0:05:13] LiveBook: 5 Games} Qxe4 {[%emt 0:00:13]} 11. Bxe4 {[%emt 0:00:02]} Nd7 {[%emt 0:00:11]} 12. Rd1 $146 {[%emt 0:02:09]} ({Vorgänger:} 12. Re1 Nf6 13. Bf3 O-O-O 14. c3 Kb8 15. g3 Bd6 16. Kg2 {½-½ (16) Felgaer,R (2509)-Campora,D (2542) Pinamar 2002}) 12... O-O-O {[%emt 0:00:44]} 13. c4 {[%emt 0:07:51]} Nb6 {[%emt 0:10:41]} 14. b3 $1 {[%emt 0:00:53]} Be7 {[%emt 0:00:18]} 15. Be3 {[%emt 0:01:15]} Bf6 {[%emt 0:00:15]} 16. Rac1 {[%emt 0:00:22]} Rd7 {[%emt 0:00:47] [#]} 17. d5 $1 {[%emt 0:03:05]} Rhd8 {[%emt 0:10:25]} 18. d6 {[%emt 0:08:58]} Be5 {[%emt 0:01:15]} 19. c5 {[%emt 0:16:43]} Nd5 {[%emt 0:00:08]} 20. Bxd5 {[%emt 0:09:16]} exd5 {[%emt 0:00:23]} 21. Bd4 {[%emt 0:02:49]} (21. b4 $16) 21... Bxd4 {[%emt 0:01:41]} 22. Rxd4 {[%emt 0:00:28]} Re8 {[%emt 0:00:26]} (22... b6 $11) 23. Kf1 {[%emt 0:00:05]} f5 {[%emt 0:11:34]} 24. Re1 {[%emt 0:04:40]} Rxe1+ {[%emt 0:02:03]} 25. Kxe1 {[%emt 0:00:02]} b6 {[%emt 0:00:08]} 26. b4 {[%emt 0:00:18]} Rb7 {[%emt 0:00:10]} 27. Rf4 {[%emt 0:01:30]} g6 $14 {[%emt 0:10:44]} 28. g4 {[%emt 0:01:53]} bxc5 {[%emt 0:09:28]} 29. bxc5 {[%emt 0:00:01]} Rb5 {[%emt 0:00:08]} 30. gxf5 {[%emt 0:00:27]} gxf5 {[%emt 0:00:03]} 31. Rxf5 {[%emt 0:02:34]} Rxc5 {[%emt 0:00:19]} 32. Rf7 {[%emt 0:00:14]} Ra5 {[%emt 0:01:22]} 33. Rxh7 {[%emt 0:00:14]} Rxa2 {[%emt 0:00:10]} 34. h4 {[%emt 0:00:08]} a5 {[%emt 0:26:05]} 35. h5 {[%emt 0:07:33]} Ra1+ {[%emt 0:02:53]} 36. Ke2 {[%emt 0:01:51]} a4 {[%emt 0:03:21]} 37. Rc7+ {[%emt 0:07:13]} Kd8 {[%emt 0:00:51]} 38. h6 {[%emt 0:03:22]} Rh1 {[%emt 0:03:54]} 39. h7 {[%emt 0:00:14]} a3 {[%emt 0:00:02]} 40. Ra7 {[%emt 0:00:08]} 1-0